[Event "Titled Tuesday Blitz June 13 Late 2023"]
[White "Tokhirjonova, Gulrukhbegim"]
[Black "Kabilov, Amin"]
[WhiteFideId "14203626"]
[BlackFideId "14700859"]
[WhiteElo "2265"]
[BlackElo "2110"]
[Result "0-1"]
[Round "10"]
[TimeControl "180+2"]
[Date "2023.06.13"]
[WhiteClock "0:00:52"]
[BlackClock "0:01:34"]
[Board "77"]

1. d4 {[%clk 0:02:54]}  Nf6 {[%clk 0:02:59]} 2. Nc3 {[%clk 0:02:53]}  c5 {[%clk 0:02:58]} 3. dxc5 {[%clk 0:02:52]}  e6 {[%clk 0:02:54]} 4. e4 {[%clk 0:02:50]}  Bxc5 {[%clk 0:02:53]} 5. Bd3 {[%clk 0:02:47]}  Nc6 {[%clk 0:02:50]} 6. Nf3 {[%clk 0:02:46]}  Ng4 {[%clk 0:02:36]} 7. O-O {[%clk 0:02:45]}  Qc7 {[%clk 0:02:33]} 8. h3 {[%clk 0:02:43]}  h5 {[%clk 0:02:31]} 9. Nb5 {[%clk 0:02:39]}  Qg3 {[%clk 0:02:15]} 10. Qe2 {[%clk 0:02:28]}  Nce5 {[%clk 0:02:11]} 11. Nd6+ {[%clk 0:01:55]}  Ke7 {[%clk 0:02:07]} 12. Nxc8+ {[%clk 0:01:53]}  Raxc8 {[%clk 0:02:04]} 13. Bg5+ {[%clk 0:01:52]}  f6 {[%clk 0:02:02]} 14. hxg4 {[%clk 0:01:48]}  hxg4 {[%clk 0:01:58]} 15. Bh4 {[%clk 0:01:45]}  Rxh4 {[%clk 0:01:34]} 16. Nxh4 {[%clk 0:00:52]}  Qxh4 {[%clk 0:01:34]} 0-1


[Site "https://www.chess.com"]

[Event "Titled Tuesday Blitz June 13 Late 2023"]
[White "Martins, Vinicius Tine"]
[Black "Yolosz"]
[WhiteFideId "2112884"]
[WhiteElo "2373"]
[BlackElo "2422"]
[Result "1-0"]
[Round "10"]
[TimeControl "180+2"]
[Date "2023.06.13"]
[WhiteClock "0:00:36"]
[BlackClock "0:00:00"]
[Board "78"]

1. e4 {[%clk 0:03:00]}  c5 {[%clk 0:02:59]} 2. Nf3 {[%clk 0:02:59]}  Nc6 {[%clk 0:03:00]} 3. d4 {[%clk 0:02:59]}  cxd4 {[%clk 0:03:00]} 4. Nxd4 {[%clk 0:03:00]}  g6 {[%clk 0:03:00]} 5. c4 {[%clk 0:02:52]}  Nf6 {[%clk 0:02:22]} 6. Nc3 {[%clk 0:02:51]}  Bg7 {[%clk 0:02:14]} 7. Be3 {[%clk 0:02:30]}  d6 {[%clk 0:02:05]} 8. f3 {[%clk 0:02:29]}  O-O {[%clk 0:01:57]} 9. Qd2 {[%clk 0:02:28]}  Nxd4 {[%clk 0:01:54]} 10. Bxd4 {[%clk 0:02:26]}  Be6 {[%clk 0:01:52]} 11. Rc1 {[%clk 0:02:24]}  Nd7 {[%clk 0:01:50]} 12. Be3 {[%clk 0:02:22]}  Rc8 {[%clk 0:01:32]} 13. b3 {[%clk 0:02:20]}  Qa5 {[%clk 0:01:22]} 14. Nd5 {[%clk 0:02:11]}  Qxd2+ {[%clk 0:01:20]} 15. Kxd2 {[%clk 0:02:11]}  Bxd5 {[%clk 0:01:17]} 16. exd5 {[%clk 0:02:11]}  a6 {[%clk 0:01:15]} 17. g3 {[%clk 0:01:55]}  Rfe8 {[%clk 0:01:08]} 18. Bh3 {[%clk 0:01:53]}  f5 {[%clk 0:00:53]} 19. f4 {[%clk 0:01:47]}  Nf6 {[%clk 0:00:50]} 20. Kd3 {[%clk 0:01:44]}  e5 {[%clk 0:00:43]} 21. dxe6 {[%clk 0:01:25]}  Rxe6 {[%clk 0:00:41]} 22. Bd4 {[%clk 0:01:20]}  Ne4 {[%clk 0:00:40]} 23. Bg2 {[%clk 0:01:13]}  Bxd4 {[%clk 0:00:37]} 24. Kxd4 {[%clk 0:01:14]}  Rd8 {[%clk 0:00:19]} 25. Rhe1 {[%clk 0:01:09]}  Nc5 {[%clk 0:00:15]} 26. Bd5 {[%clk 0:01:07]}  Kf7 {[%clk 0:00:13]} 27. b4 {[%clk 0:00:58]}  Ne4 {[%clk 0:00:08]} 28. Re3 {[%clk 0:00:43]}  Kf6 {[%clk 0:00:07]} 29. Bxe6 {[%clk 0:00:41]}  Kxe6 {[%clk 0:00:08]} 30. Rce1 {[%clk 0:00:39]}  d5 {[%clk 0:00:07]} 31. c5 {[%clk 0:00:37]}  Rd7 {[%clk 0:00:04]} 32. Rc1 {[%clk 0:00:37]}  Kf6 {[%clk 0:00:03]} 33. c6 {[%clk 0:00:36]}  Rc7 {[%clk 0:00:02]} 34. Kxd5 {[%clk 0:00:34]}  bxc6+ {[%clk 0:00:01]} 35. Rxc6+ {[%clk 0:00:35]}  Rxc6 {[%clk 0:00:00]} 36. Kxc6 {[%clk 0:00:36]} 1-0


[Site "https://www.chess.com"]

[Event "Titled Tuesday Blitz June 13 Late 2023"]
[White "Goncalves, Davi Sulzbacher"]
[Black "Fedotov, Nikita"]
[WhiteFideId "2154510"]
[BlackFideId "24161446"]
[WhiteElo "2182"]
[BlackElo "2211"]
[Result "0-1"]
[Round "10"]
[TimeControl "180+2"]
[Date "2023.06.13"]
[WhiteClock "0:00:07"]
[BlackClock "0:01:04"]
[Board "79"]

1. Nf3 {[%clk 0:02:59]}  Nf6 {[%clk 0:02:57]} 2. Nc3 {[%clk 0:02:59]}  c5 {[%clk 0:02:57]} 3. e4 {[%clk 0:02:59]}  d6 {[%clk 0:02:56]} 4. d4 {[%clk 0:02:58]}  cxd4 {[%clk 0:02:57]} 5. Nxd4 {[%clk 0:02:58]}  a6 {[%clk 0:02:58]} 6. Be2 {[%clk 0:02:58]}  g6 {[%clk 0:02:56]} 7. h4 {[%clk 0:02:55]}  Bg7 {[%clk 0:02:57]} 8. Be3 {[%clk 0:02:51]}  h5 {[%clk 0:02:56]} 9. Qd2 {[%clk 0:02:48]}  Nc6 {[%clk 0:02:56]} 10. O-O-O {[%clk 0:02:41]}  Bd7 {[%clk 0:02:55]} 11. Bf3 {[%clk 0:02:27]}  Rc8 {[%clk 0:02:52]} 12. Kb1 {[%clk 0:02:25]}  Ne5 {[%clk 0:02:52]} 13. Bg5 {[%clk 0:02:22]}  Nc4 {[%clk 0:02:51]} 14. Qe2 {[%clk 0:02:22]}  Qb6 {[%clk 0:02:48]} 15. Nb3 {[%clk 0:02:22]}  Na3+ {[%clk 0:02:14]} 16. Kc1 {[%clk 0:02:21]}  Rxc3 {[%clk 0:02:13]} 17. bxc3 {[%clk 0:02:21]}  O-O {[%clk 0:02:11]} 18. e5 {[%clk 0:02:09]}  dxe5 {[%clk 0:01:51]} 19. Bxf6 {[%clk 0:02:09]}  Bb5 {[%clk 0:01:51]} 20. Bxg7 {[%clk 0:00:57]}  Bxe2 {[%clk 0:01:50]} 21. Bxf8 {[%clk 0:00:54]}  Bxd1 {[%clk 0:01:50]} 22. Rxd1 {[%clk 0:00:54]}  Kxf8 {[%clk 0:01:50]} 23. Rd2 {[%clk 0:00:52]}  Nc4 {[%clk 0:01:46]} 24. Re2 {[%clk 0:00:50]}  Qd6 {[%clk 0:01:44]} 25. Be4 {[%clk 0:00:48]}  Qa3+ {[%clk 0:01:42]} 26. Kd1 {[%clk 0:00:49]}  Qxa2 {[%clk 0:01:41]} 27. Bd5 {[%clk 0:00:43]}  Qb1+ {[%clk 0:01:33]} 28. Nc1 {[%clk 0:00:43]}  Na3 {[%clk 0:01:25]} 29. Bb3 {[%clk 0:00:39]}  Nb5 {[%clk 0:01:23]} 30. Re3 {[%clk 0:00:32]}  e4 {[%clk 0:01:16]} 31. Kd2 {[%clk 0:00:32]}  f5 {[%clk 0:01:15]} 32. g3 {[%clk 0:00:28]}  Qa1 {[%clk 0:01:11]} 33. Bc4 {[%clk 0:00:17]}  Na3 {[%clk 0:01:09]} 34. Bb3 {[%clk 0:00:17]}  Nb1+ {[%clk 0:01:09]} 35. Ke2 {[%clk 0:00:09]}  Nxc3+ {[%clk 0:01:09]} 36. Kd2 {[%clk 0:00:10]}  Nb1+ {[%clk 0:01:03]} 37. Ke2 {[%clk 0:00:10]}  Qd4 {[%clk 0:01:03]} 38. Kf1 {[%clk 0:00:09]}  Qd1+ {[%clk 0:01:03]} 39. Re1 {[%clk 0:00:07]}  Nd2+ {[%clk 0:01:04]} 0-1


[Site "https://www.chess.com"]

[Event "Titled Tuesday Blitz June 13 Late 2023"]
[White "Golubev, Mikhail"]
[Black "Bueno, Alfeu Junior Varela"]
[WhiteFideId "14100983"]
[BlackFideId "2108879"]
[WhiteElo "2374"]
[BlackElo "2175"]
[Result "0-1"]
[Round "10"]
[TimeControl "180+2"]
[Date "2023.06.13"]
[WhiteClock "0:00:00"]
[BlackClock "0:00:04"]
[Board "80"]

1. e4 {[%clk 0:03:00]}  e6 {[%clk 0:02:54]} 2. d4 {[%clk 0:02:59]}  d5 {[%clk 0:02:53]} 3. Nc3 {[%clk 0:03:00]}  Nf6 {[%clk 0:02:54]} 4. e5 {[%clk 0:02:57]}  Nfd7 {[%clk 0:02:54]} 5. f4 {[%clk 0:02:57]}  c5 {[%clk 0:02:54]} 6. Nf3 {[%clk 0:02:58]}  Nc6 {[%clk 0:02:55]} 7. Be3 {[%clk 0:02:58]}  cxd4 {[%clk 0:02:56]} 8. Nxd4 {[%clk 0:02:57]}  Bc5 {[%clk 0:02:56]} 9. Qd2 {[%clk 0:02:53]}  O-O {[%clk 0:02:56]} 10. O-O-O {[%clk 0:02:51]}  a6 {[%clk 0:02:57]} 11. h4 {[%clk 0:02:36]}  Nxd4 {[%clk 0:02:57]} 12. Bxd4 {[%clk 0:02:36]}  b5 {[%clk 0:02:57]} 13. h5 {[%clk 0:02:24]}  b4 {[%clk 0:02:57]} 14. Na4 {[%clk 0:02:21]}  Bxd4 {[%clk 0:02:57]} 15. Qxd4 {[%clk 0:02:21]}  Qa5 {[%clk 0:02:58]} 16. b3 {[%clk 0:02:16]}  Bb7 {[%clk 0:02:58]} 17. f5 {[%clk 0:01:56]}  Bc6 {[%clk 0:02:49]} 18. f6 {[%clk 0:01:52]}  gxf6 {[%clk 0:02:25]} 19. exf6 {[%clk 0:01:45]}  Kh8 {[%clk 0:02:18]} 20. Bd3 {[%clk 0:01:30]}  e5 {[%clk 0:02:03]} 21. Qg4 {[%clk 0:01:29]}  Rg8 {[%clk 0:02:01]} 22. Qf5 {[%clk 0:01:27]}  Nf8 {[%clk 0:01:32]} 23. Qxe5 {[%clk 0:01:27]}  Re8 {[%clk 0:01:13]} 24. Qd4 {[%clk 0:01:09]}  Ne6 {[%clk 0:00:59]} 25. Qa7 {[%clk 0:00:43]}  Ref8 {[%clk 0:00:37]} 26. Qxa6 {[%clk 0:00:38]}  Qc7 {[%clk 0:00:34]} 27. Bb5 {[%clk 0:00:24]}  Qf4+ {[%clk 0:00:20]} 28. Kb1 {[%clk 0:00:23]}  Bxb5 {[%clk 0:00:19]} 29. Qxb5 {[%clk 0:00:23]}  Qxf6 {[%clk 0:00:19]} 30. Qxd5 {[%clk 0:00:22]}  Rg5 {[%clk 0:00:13]} 31. Qd2 {[%clk 0:00:18]}  Rfg8 {[%clk 0:00:13]} 32. Rhf1 {[%clk 0:00:18]}  Qh6 {[%clk 0:00:12]} 33. Rxf7 {[%clk 0:00:16]}  Qxh5 {[%clk 0:00:11]} 34. Qe1 {[%clk 0:00:11]}  Qxf7 {[%clk 0:00:11]} 35. Qxb4 {[%clk 0:00:09]}  Rxg2 {[%clk 0:00:09]} 36. Re1 {[%clk 0:00:09]}  Ng5 {[%clk 0:00:07]} 37. Nc5 {[%clk 0:00:05]}  Qg6 {[%clk 0:00:06]} 38. Qd4+ {[%clk 0:00:04]}  Qg7 {[%clk 0:00:06]} 39. Qd3 {[%clk 0:00:03]}  Nf7 {[%clk 0:00:05]} 40. a4 {[%clk 0:00:03]}  Rg1 {[%clk 0:00:05]} 41. Rd1 {[%clk 0:00:01]}  Rxd1+ {[%clk 0:00:05]} 42. Qxd1 {[%clk 0:00:00]}  Qc3 {[%clk 0:00:04]} 0-1


[Site "https://www.chess.com"]

[Event "Titled Tuesday Blitz June 13 Late 2023"]
[White "Quinones Garcia, Santiago"]
[Black "Yurasova, Daria"]
[WhiteFideId "4408497"]
[BlackFideId "34146919"]
[WhiteElo "2173"]
[BlackElo "2109"]
[Result "1/2-1/2"]
[Round "10"]
[TimeControl "180+2"]
[Date "2023.06.13"]
[WhiteClock "0:00:54"]
[BlackClock "0:00:03"]
[Board "82"]

1. d4 {[%clk 0:03:00]}  d5 {[%clk 0:02:59]} 2. c4 {[%clk 0:03:01]}  dxc4 {[%clk 0:02:58]} 3. Nf3 {[%clk 0:03:00]}  Nf6 {[%clk 0:02:58]} 4. e3 {[%clk 0:03:01]}  e6 {[%clk 0:02:57]} 5. Bxc4 {[%clk 0:03:01]}  a6 {[%clk 0:02:58]} 6. a4 {[%clk 0:03:00]}  Nc6 {[%clk 0:02:57]} 7. O-O {[%clk 0:03:00]}  Be7 {[%clk 0:02:57]} 8. Qe2 {[%clk 0:03:00]}  O-O {[%clk 0:02:58]} 9. Rd1 {[%clk 0:03:00]}  Nb4 {[%clk 0:02:58]} 10. Nc3 {[%clk 0:02:59]}  Bd7 {[%clk 0:02:58]} 11. e4 {[%clk 0:02:59]}  Bc6 {[%clk 0:02:57]} 12. Bf4 {[%clk 0:02:58]}  h6 {[%clk 0:02:43]} 13. Rd2 {[%clk 0:02:58]}  b5 {[%clk 0:02:37]} 14. axb5 {[%clk 0:02:51]}  axb5 {[%clk 0:02:38]} 15. Rxa8 {[%clk 0:02:51]}  Qxa8 {[%clk 0:02:37]} 16. Bxb5 {[%clk 0:02:46]}  Bxb5 {[%clk 0:02:01]} 17. Qxb5 {[%clk 0:02:45]}  Nxe4 {[%clk 0:01:59]} 18. Nxe4 {[%clk 0:02:45]}  Qxe4 {[%clk 0:01:59]} 19. Bxc7 {[%clk 0:02:46]}  Ra8 {[%clk 0:01:45]} 20. h3 {[%clk 0:02:32]}  Nd5 {[%clk 0:01:37]} 21. Bg3 {[%clk 0:02:28]}  Ra1+ {[%clk 0:01:31]} 22. Kh2 {[%clk 0:02:28]}  Qb1 {[%clk 0:01:31]} 23. Bb8 {[%clk 0:02:13]}  Qc1 {[%clk 0:01:02]} 24. Qe8+ {[%clk 0:02:11]}  Kh7 {[%clk 0:01:01]} 25. Qxf7 {[%clk 0:02:11]}  Bh4 {[%clk 0:00:44]} 26. Nxh4 {[%clk 0:02:03]}  Qxd2 {[%clk 0:00:44]} 27. Qg6+ {[%clk 0:01:54]}  Kh8 {[%clk 0:00:44]} 28. Qxe6 {[%clk 0:01:47]}  Nf6 {[%clk 0:00:23]} 29. Be5 {[%clk 0:01:22]}  Qxf2 {[%clk 0:00:19]} 30. Nf5 {[%clk 0:01:07]}  Qg1+ {[%clk 0:00:18]} 31. Kg3 {[%clk 0:01:06]}  Qe1+ {[%clk 0:00:18]} 32. Kh2 {[%clk 0:01:03]}  Qg1+ {[%clk 0:00:08]} 33. Kg3 {[%clk 0:01:03]}  Qe1+ {[%clk 0:00:08]} 34. Kh2 {[%clk 0:00:55]}  Qh1+ {[%clk 0:00:08]} 35. Kg3 {[%clk 0:00:54]}  Qe1+ {[%clk 0:00:03]} 1/2-1/2


[Site "https://www.chess.com"]

[Event "Titled Tuesday Blitz June 13 Late 2023"]
[White "Erzhanov, Arman"]
[Black "Omariev, Maksim"]
[WhiteFideId "4138821"]
[BlackFideId "4193423"]
[WhiteElo "2138"]
[BlackElo "2359"]
[Result "0-1"]
[Round "10"]
[TimeControl "180+2"]
[Date "2023.06.13"]
[WhiteClock "0:00:00"]
[BlackClock "0:00:04"]
[Board "84"]

1. e4 {[%clk 0:03:00]}  c5 {[%clk 0:02:58]} 2. Nf3 {[%clk 0:02:58]}  d6 {[%clk 0:02:59]} 3. d4 {[%clk 0:02:57]}  cxd4 {[%clk 0:03:00]} 4. Qxd4 {[%clk 0:02:58]}  a6 {[%clk 0:02:59]} 5. Be2 {[%clk 0:02:53]}  Nc6 {[%clk 0:02:59]} 6. Qe3 {[%clk 0:02:52]}  g6 {[%clk 0:02:57]} 7. h3 {[%clk 0:02:52]}  Bg7 {[%clk 0:02:37]} 8. O-O {[%clk 0:02:51]}  Nf6 {[%clk 0:02:34]} 9. Rd1 {[%clk 0:02:51]}  O-O {[%clk 0:02:33]} 10. c4 {[%clk 0:02:51]}  Nd7 {[%clk 0:02:10]} 11. Nc3 {[%clk 0:02:51]}  b6 {[%clk 0:02:09]} 12. b3 {[%clk 0:02:38]}  Bb7 {[%clk 0:02:06]} 13. Bb2 {[%clk 0:02:38]}  Rc8 {[%clk 0:01:59]} 14. Rd2 {[%clk 0:02:37]}  Re8 {[%clk 0:01:58]} 15. Rad1 {[%clk 0:02:37]}  Nc5 {[%clk 0:01:40]} 16. Nd5 {[%clk 0:02:34]}  Bxb2 {[%clk 0:01:40]} 17. Rxb2 {[%clk 0:02:34]}  e6 {[%clk 0:01:38]} 18. Nc3 {[%clk 0:01:53]}  Qe7 {[%clk 0:01:19]} 19. Rbd2 {[%clk 0:01:52]}  Red8 {[%clk 0:01:10]} 20. Qh6 {[%clk 0:01:52]}  Ne5 {[%clk 0:00:59]} 21. Nd4 {[%clk 0:01:36]}  Nxe4 {[%clk 0:00:56]} 22. Nxe4 {[%clk 0:01:35]}  Bxe4 {[%clk 0:00:57]} 23. Qe3 {[%clk 0:01:28]}  Bb7 {[%clk 0:00:52]} 24. a4 {[%clk 0:01:20]}  Nd7 {[%clk 0:00:49]} 25. Nf3 {[%clk 0:01:19]}  Nc5 {[%clk 0:00:44]} 26. Rb1 {[%clk 0:01:17]}  d5 {[%clk 0:00:23]} 27. cxd5 {[%clk 0:01:16]}  Rxd5 {[%clk 0:00:24]} 28. Rxd5 {[%clk 0:01:16]}  Bxd5 {[%clk 0:00:24]} 29. Bd1 {[%clk 0:01:00]}  Qb7 {[%clk 0:00:18]} 30. b4 {[%clk 0:00:59]}  Ne4 {[%clk 0:00:18]} 31. Qh6 {[%clk 0:00:57]}  Nc3 {[%clk 0:00:16]} 32. Ng5 {[%clk 0:00:36]}  f6 {[%clk 0:00:14]} 33. Rc1 {[%clk 0:00:18]}  Ne2+ {[%clk 0:00:14]} 34. Bxe2 {[%clk 0:00:17]}  Rxc1+ {[%clk 0:00:14]} 35. Kh2 {[%clk 0:00:17]}  fxg5 {[%clk 0:00:15]} 36. Qxg5 {[%clk 0:00:18]}  Qc7+ {[%clk 0:00:13]} 37. f4 {[%clk 0:00:17]}  Rc2 {[%clk 0:00:13]} 38. Bf1 {[%clk 0:00:17]}  Rc3 {[%clk 0:00:13]} 39. Qf6 {[%clk 0:00:15]}  Rc2 {[%clk 0:00:11]} 40. h4 {[%clk 0:00:14]}  Rf2 {[%clk 0:00:11]} 41. Kg1 {[%clk 0:00:13]}  Rxf4 {[%clk 0:00:07]} 42. Qg5 {[%clk 0:00:12]}  Rf5 {[%clk 0:00:06]} 43. Qe3 {[%clk 0:00:05]}  a5 {[%clk 0:00:04]} 44. b5 {[%clk 0:00:04]}  Qc5 {[%clk 0:00:04]} 45. Qxc5 {[%clk 0:00:04]}  bxc5 {[%clk 0:00:05]} 46. Bd3 {[%clk 0:00:05]}  Rf4 {[%clk 0:00:05]} 47. Bc2 {[%clk 0:00:03]}  Rxh4 {[%clk 0:00:05]} 48. Kf2 {[%clk 0:00:02]}  Rb4 {[%clk 0:00:05]} 49. Ke3 {[%clk 0:00:02]}  Kf7 {[%clk 0:00:05]} 50. Kd2 {[%clk 0:00:02]}  Ke7 {[%clk 0:00:05]} 51. Kc3 {[%clk 0:00:03]}  Kd6 {[%clk 0:00:05]} 52. g4 {[%clk 0:00:04]}  Kc7 {[%clk 0:00:05]} 53. g5 {[%clk 0:00:00]}  Rg4 {[%clk 0:00:04]} 0-1


[Site "https://www.chess.com"]

[Event "Titled Tuesday Blitz June 13 Late 2023"]
[White "Martinez, Ayelen"]
[Black "ArchibaldCerveza29"]
[WhiteFideId "118702"]
[WhiteElo "2074"]
[BlackElo "2457"]
[Result "0-1"]
[Round "10"]
[TimeControl "180+2"]
[Date "2023.06.13"]
[WhiteClock "0:00:00"]
[BlackClock "0:00:05"]
[Board "87"]

1. e4 {[%clk 0:03:00]}  e5 {[%clk 0:02:54]} 2. Nf3 {[%clk 0:02:59]}  Nc6 {[%clk 0:02:54]} 3. Bb5 {[%clk 0:02:59]}  g6 {[%clk 0:02:54]} 4. d4 {[%clk 0:02:41]}  exd4 {[%clk 0:02:53]} 5. c3 {[%clk 0:02:32]}  a6 {[%clk 0:02:53]} 6. Bc4 {[%clk 0:02:30]}  Bg7 {[%clk 0:02:48]} 7. Ng5 {[%clk 0:02:07]}  Nh6 {[%clk 0:02:47]} 8. O-O {[%clk 0:02:02]}  O-O {[%clk 0:02:43]} 9. cxd4 {[%clk 0:02:01]}  Nxd4 {[%clk 0:02:36]} 10. Nc3 {[%clk 0:01:56]}  d6 {[%clk 0:02:30]} 11. Be3 {[%clk 0:01:35]}  Nc6 {[%clk 0:02:30]} 12. Nd5 {[%clk 0:01:29]}  Ne5 {[%clk 0:02:24]} 13. Bb3 {[%clk 0:01:28]}  Nhg4 {[%clk 0:02:22]} 14. Bf4 {[%clk 0:01:17]}  h6 {[%clk 0:02:05]} 15. Nf3 {[%clk 0:01:13]}  Nxf3+ {[%clk 0:02:04]} 16. Qxf3 {[%clk 0:01:14]}  Ne5 {[%clk 0:02:04]} 17. Qg3 {[%clk 0:01:13]}  Be6 {[%clk 0:01:54]} 18. Rad1 {[%clk 0:01:12]}  Kh7 {[%clk 0:01:45]} 19. Bxe5 {[%clk 0:01:06]}  Bxe5 {[%clk 0:01:20]} 20. f4 {[%clk 0:01:06]}  Bg7 {[%clk 0:01:21]} 21. f5 {[%clk 0:01:01]}  Bxd5 {[%clk 0:01:19]} 22. Bxd5 {[%clk 0:01:00]}  Qg5 {[%clk 0:01:14]} 23. Qxg5 {[%clk 0:00:51]}  hxg5 {[%clk 0:01:15]} 24. f6 {[%clk 0:00:52]}  Bh6 {[%clk 0:01:13]} 25. g4 {[%clk 0:00:52]}  c6 {[%clk 0:01:05]} 26. Bb3 {[%clk 0:00:48]}  Rad8 {[%clk 0:01:02]} 27. Rf3 {[%clk 0:00:45]}  Rfe8 {[%clk 0:01:01]} 28. Bxf7 {[%clk 0:00:43]}  Rxe4 {[%clk 0:01:00]} 29. h3 {[%clk 0:00:43]}  Rf4 {[%clk 0:00:52]} 30. Re3 {[%clk 0:00:37]}  Bf8 {[%clk 0:00:37]} 31. Re6 {[%clk 0:00:31]}  d5 {[%clk 0:00:33]} 32. Be8 {[%clk 0:00:22]}  Rd6 {[%clk 0:00:29]} 33. Rxd6 {[%clk 0:00:18]}  Bxd6 {[%clk 0:00:30]} 34. f7 {[%clk 0:00:18]}  Kg7 {[%clk 0:00:27]} 35. Re1 {[%clk 0:00:17]}  Kf8 {[%clk 0:00:22]} 36. Re6 {[%clk 0:00:16]}  Bc5+ {[%clk 0:00:22]} 37. Kg2 {[%clk 0:00:16]}  Kg7 {[%clk 0:00:11]} 38. h4 {[%clk 0:00:15]}  gxh4 {[%clk 0:00:10]} 39. Kh3 {[%clk 0:00:14]}  g5 {[%clk 0:00:06]} 40. Re5 {[%clk 0:00:14]}  Rf3+ {[%clk 0:00:05]} 41. Kh2 {[%clk 0:00:13]}  Rf2+ {[%clk 0:00:06]} 42. Kh1 {[%clk 0:00:13]}  Rf1+ {[%clk 0:00:06]} 43. Kg2 {[%clk 0:00:12]}  Rf2+ {[%clk 0:00:06]} 44. Kh1 {[%clk 0:00:12]}  Kf6 {[%clk 0:00:04]} 45. Re1 {[%clk 0:00:06]}  Kg7 {[%clk 0:00:04]} 46. Rc1 {[%clk 0:00:06]}  Be3 {[%clk 0:00:03]} 47. Re1 {[%clk 0:00:06]}  Rf3 {[%clk 0:00:03]} 48. Kg2 {[%clk 0:00:05]}  Rg3+ {[%clk 0:00:04]} 49. Kh2 {[%clk 0:00:05]}  Kf8 {[%clk 0:00:05]} 50. Rf1 {[%clk 0:00:05]}  Bf4 {[%clk 0:00:04]} 51. Kh1 {[%clk 0:00:05]}  Rh3+ {[%clk 0:00:03]} 52. Kg2 {[%clk 0:00:05]}  Rg3+ {[%clk 0:00:04]} 53. Kh1 {[%clk 0:00:05]}  Rxg4 {[%clk 0:00:05]} 54. Re1 {[%clk 0:00:04]}  Rg3 {[%clk 0:00:05]} 55. Rd1 {[%clk 0:00:02]}  Re3 {[%clk 0:00:05]} 56. Rf1 {[%clk 0:00:00]}  h3 {[%clk 0:00:05]} 0-1


[Site "https://www.chess.com"]

[Event "Titled Tuesday Blitz June 13 Late 2023"]
[White "Balla, Tamas-Kristof"]
[Black "kiwibobo"]
[WhiteFideId "1208497"]
[WhiteElo "2334"]
[BlackElo "2310"]
[Result "0-1"]
[Round "10"]
[TimeControl "180+2"]
[Date "2023.06.13"]
[WhiteClock "0:00:00"]
[BlackClock "0:00:38"]
[Board "90"]

1. e4 {[%clk 0:03:00]}  e5 {[%clk 0:02:57]} 2. Nf3 {[%clk 0:03:00]}  Nc6 {[%clk 0:02:56]} 3. d4 {[%clk 0:03:01]}  exd4 {[%clk 0:02:55]} 4. Nxd4 {[%clk 0:03:02]}  Bc5 {[%clk 0:02:54]} 5. Nb3 {[%clk 0:03:02]}  Bb6 {[%clk 0:02:54]} 6. Nc3 {[%clk 0:03:02]}  Nf6 {[%clk 0:02:55]} 7. Qe2 {[%clk 0:03:02]}  O-O {[%clk 0:02:54]} 8. Be3 {[%clk 0:03:03]}  Bxe3 {[%clk 0:02:52]} 9. Qxe3 {[%clk 0:03:01]}  d5 {[%clk 0:02:42]} 10. O-O-O {[%clk 0:02:58]}  Re8 {[%clk 0:02:17]} 11. Nxd5 {[%clk 0:02:48]}  Nxe4 {[%clk 0:02:04]} 12. f3 {[%clk 0:01:54]}  Nd6 {[%clk 0:01:47]} 13. Qf4 {[%clk 0:01:34]}  Be6 {[%clk 0:01:39]} 14. Bb5 {[%clk 0:01:24]}  Nxb5 {[%clk 0:01:32]} 15. Nb6 {[%clk 0:01:21]}  Qf6 {[%clk 0:01:05]} 16. Qxf6 {[%clk 0:01:18]}  gxf6 {[%clk 0:01:06]} 17. Nxa8 {[%clk 0:01:18]}  Rxa8 {[%clk 0:01:07]} 18. Rhe1 {[%clk 0:01:13]}  Nd6 {[%clk 0:01:00]} 19. Nd4 {[%clk 0:01:06]}  Nxd4 {[%clk 0:00:58]} 20. Rxd4 {[%clk 0:01:07]}  Kg7 {[%clk 0:00:54]} 21. g4 {[%clk 0:00:41]}  Rh8 {[%clk 0:00:51]} 22. h4 {[%clk 0:00:41]}  h5 {[%clk 0:00:48]} 23. g5 {[%clk 0:00:41]}  fxg5 {[%clk 0:00:47]} 24. hxg5 {[%clk 0:00:42]}  Kg6 {[%clk 0:00:44]} 25. f4 {[%clk 0:00:30]}  h4 {[%clk 0:00:42]} 26. b3 {[%clk 0:00:00]}  Kf5 {[%clk 0:00:38]} 0-1


[Site "https://www.chess.com"]